bitfinex-derivatives/quotes_BTCF0:USTF0_20241218
["timestamp","ask_amount","ask_price","bid_price","bid_amount"]
[1734495385541,0.11854416,104290.0,104280.0,0.01009994]
[1734495385741,0.047945,104290.0,104280.0,0.01009994]
[1734495386042,0.47934416,104290.0,104280.0,0.01009994]
[1734495387145,0.49678513,104290.0,104280.0,0.01009994]
[1734495393654,0.49678513,104290.0,104280.0,0.05804994]
[1734495394038,0.49824366,104300.0,104280.0,0.01009994]
[1734495394244,0.49824366,104300.0,104290.0,0.047945]
[1734495394447,0.4276445,104300.0,104290.0,0.047945]
[1734495394751,0.51364697,104300.0,104290.0,0.047945]
[1734495394948,0.07059916,104300.0,104290.0,0.3608]
[1734495395148,0.11854016,104300.0,104290.0,0.3608]
[1734495395647,0.047941,104300.0,104290.0,0.408745]
[1734495396448,0.047941,104300.0,104290.0,0.3608]
[1734495397448,0.06719045,104300.0,104290.0,0.3608]
[1734495397661,0.13778961,104300.0,104290.0,0.3608]
[1734495397868,0.04795,104280.0,104270.0,0.3608]
[1734495398040,0.04795,104280.0,104270.0,0.3708]
[1734495398853,0.11854916,104280.0,104270.0,0.37088757]
[1734495400152,0.11854916,104280.0,104270.0,0.36088757]
[1734495401853,0.13438557,104280.0,104270.0,0.36088757]
[1734495406345,0.06378641,104280.0,104270.0,0.36088757]
[1734495410261,0.08285949,104280.0,104270.0,0.36088757]
[1734495410443,0.08285949,104280.0,104270.0,0.40884157]
[1734495413558,0.08285949,104280.0,104270.0,0.04804157]
[1734495413754,0.08285949,104280.0,104270.0,0.40884157]
[1734495414360,0.06378641,104280.0,104270.0,0.40884157]
[1734495415058,0.13778961,104300.0,104280.0,0.047948]
[1734495415059,0.01924945,104300.0,104280.0,0.047948]
[1734495415362,0.13779161,104300.0,104290.0,0.3608]
[1734495417580,0.13779161,104300.0,104280.0,0.3608]
[1734495417887,0.04795,104280.0,104270.0,0.36088757]
[1734495418179,0.11854916,104280.0,104270.0,0.36088757]
[1734495420784,0.04795,104280.0,104270.0,0.36088757]
[1734495423279,0.04795,104280.0,104270.0,8.757e-05]
[1734495424462,0.11854916,104280.0,104270.0,0.36088757]
[1734495426964,0.13802361,104280.0,104270.0,0.36088757]
[1734495435064,0.13802361,104280.0,104270.0,0.50348757]
[1734495436269,0.56942277,104280.0,104270.0,0.07048757]
[1734495436474,0.047959,104260.0,104250.0,0.3978]
[1734495436669,0.11855816,104260.0,104250.0,0.3983]
[1734495436979,0.11855816,104260.0,104250.0,0.0375]
[1734495437476,0.11855816,104260.0,104250.0,0.03758492]
[1734495437672,0.11855816,104260.0,104250.0,0.03708492]
[1734495439777,0.47945486,104260.0,104250.0,0.03708492]
[1734495440884,0.55005402,104260.0,104250.0,0.03708492]
[1734495441185,0.55005402,104260.0,104230.0,0.3608]
[1734495441372,0.11856716,104240.0,104230.0,0.3608]
[1734495442276,0.11856716,104240.0,104230.0,0.36086794]
[1734495442977,0.11856716,104240.0,104230.0,6.794e-05]
[1734495444079,0.47936716,104240.0,104230.0,6.794e-05]
[1734495444770,0.11856716,104240.0,104230.0,6.794e-05]
[1734495446074,0.047968,104240.0,104230.0,6.794e-05]
[1734495446389,0.11856716,104240.0,104230.0,6.794e-05]
[1734495446580,0.11856716,104240.0,104230.0,0.00056794]
[1734495446968,0.13754888,104240.0,104230.0,0.00056794]
[1734495447590,0.13754888,104240.0,104230.0,6.794e-05]
[1734495448676,0.13754888,104240.0,104230.0,0.00056794]
[1734495449681,0.13754888,104240.0,104230.0,6.794e-05]
[1734495450181,0.49834888,104240.0,104230.0,6.794e-05]
[1734495450684,0.49834888,104240.0,104230.0,0.00056794]
[1734495451277,0.13754888,104240.0,104230.0,0.00056794]
[1734495451479,0.49834888,104240.0,104230.0,0.00056794]
[1734495451673,0.49834888,104240.0,104230.0,6.794e-05]
[1734495452584,0.49834888,104240.0,104230.0,0.00056794]
[1734495453676,0.49834888,104240.0,104230.0,6.794e-05]
[1734495454482,0.42774972,104240.0,104230.0,6.794e-05]
[1734495454696,0.49834888,104240.0,104230.0,6.794e-05]
[1734495458283,0.56354888,104240.0,104230.0,6.794e-05]
[1734495458784,0.63034888,104240.0,104230.0,6.794e-05]
[1734495461174,0.62534888,104240.0,104230.0,6.794e-05]
[1734495461985,0.64751114,104240.0,104230.0,6.794e-05]
[1734495462282,0.69389185,104240.0,104230.0,6.794e-05]
[1734495462482,0.64751114,104240.0,104230.0,6.794e-05]
[1734495462792,0.69389185,104240.0,104230.0,6.794e-05]
[1734495463475,0.64751114,104240.0,104230.0,6.794e-05]
[1734495463696,0.55474972,104240.0,104230.0,6.794e-05]
[1734495463878,0.64751114,104240.0,104230.0,6.794e-05]
[1734495464889,0.047973,104230.0,104220.0,0.066]
[1734495465082,0.50153442,104230.0,104210.0,0.3608]
[1734495465384,0.14073842,104220.0,104210.0,0.3608]
[1734495465582,0.047982,104210.0,104200.0,0.5979]
[1734495465784,0.09436271,104210.0,104200.0,0.5979]
[1734495467776,0.09436271,104210.0,104200.0,0.5984]
[1734495468583,0.047982,104210.0,104200.0,0.5984]
[1734495468792,0.09436271,104210.0,104200.0,0.5979]
[1734495469797,0.09436271,104210.0,104200.0,0.5984]
[1734495471492,0.09436271,104210.0,104200.0,0.5305]
[1734495472788,0.047978,104220.0,104200.0,0.67124842]
[1734495473103,0.09435871,104220.0,104210.0,0.4958]
[1734495473288,0.14073942,104220.0,104210.0,0.0668]
[1734495474992,0.14073942,104220.0,104210.0,0.0768]
[1734495475691,0.16528539,104220.0,104210.0,0.0768]
[1734495476494,0.07252397,104220.0,104210.0,0.4376]
[1734495476790,0.11890468,104220.0,104210.0,0.4376]
[1734495476997,0.02454597,104220.0,104210.0,0.53196271]
[1734495477211,0.09435571,104230.0,104210.0,0.53196271]
[1734495477392,0.047975,104230.0,104220.0,0.4366]
[1734495478686,0.09435571,104230.0,104220.0,0.4366]
[1734495479098,0.09435571,104230.0,104220.0,0.0758]
[1734495480301,0.09435571,104230.0,104220.0,0.4366]
[1734495480493,0.09435571,104230.0,104220.0,0.0758]
[1734495480891,0.09435571,104230.0,104220.0,0.4366]
[1734495481827,0.09435571,104230.0,104220.0,0.0758]
[1734495483292,0.14073642,104230.0,104220.0,0.0758]
[1734495483497,0.50153642,104230.0,104220.0,0.01]
[1734495484413,0.56583642,104230.0,104220.0,0.01]
[1734495492697,0.047982,104210.0,104200.0,0.1]
[1734495492894,0.49514342,104210.0,104200.0,0.1]
[1734495493100,0.402382,104210.0,104200.0,0.4608]
[1734495493405,0.402382,104210.0,104200.0,0.1]
[1734495493598,0.49514342,104210.0,104200.0,0.1]
[1734495494196,0.14074342,104210.0,104200.0,0.1]
[1734495495209,0.50154342,104210.0,104200.0,0.1]
[1734495495501,0.047987,104200.0,104190.0,0.3613]
[1734495495709,0.80614809,104200.0,104190.0,0.0005]
[1734495495907,0.61901896,104200.0,104190.0,0.0005]
[1734495496205,0.24230596,104200.0,104190.0,0.0005]
[1734495496408,0.69586738,104200.0,104190.0,0.0682]
[1734495498106,0.67384151,104200.0,104190.0,0.0682]
[1734495498315,0.74457706,104200.0,104190.0,0.0005]
[1734495498807,0.81437706,104200.0,104190.0,0.0005]
[1734495499195,0.047991,104190.0,104180.0,0.00688807]
[1734495499416,0.5502621,104190.0,104180.0,0.00688807]
[1734495499721,0.6149621,104190.0,104180.0,0.00688807]
[1734495499905,0.54422655,104190.0,104180.0,0.00688807]
[1734495500400,0.6149621,104190.0,104180.0,0.00688807]
[1734495501498,0.6149621,104190.0,104170.0,0.05781193]
[1734495501499,0.047996,104180.0,104170.0,0.05781193]
[1734495501706,0.47953155,104180.0,104170.0,0.05781193]
[1734495502004,0.408796,104180.0,104170.0,0.05781193]
[1734495502410,0.048,104170.0,104160.0,0.00048]
[1734495502602,0.47953555,104170.0,104160.0,0.00048]
[1734495502797,0.4088,104170.0,104160.0,0.00048]
[1734495503311,0.47953555,104170.0,104160.0,0.00048]
[1734495504107,0.4088,104170.0,104160.0,0.00048]
[1734495504303,0.47953555,104170.0,104160.0,0.00048]
[1734495504508,0.4088,104170.0,104160.0,0.00048]
[1734495504805,0.47953555,104170.0,104160.0,0.06578]
[1734495505809,0.47953555,104170.0,104160.0,0.00048]
[1734495506009,0.61373555,104170.0,104160.0,0.00048]
[1734495506206,0.048005,104160.0,104150.0,0.14738596]
[1734495506405,0.47954055,104160.0,104150.0,0.14738596]
[1734495508823,0.5502761,104160.0,104150.0,0.14738596]
[1734495509022,0.47954055,104160.0,104150.0,0.14738596]
[1734495509222,0.5502761,104160.0,104150.0,0.14738596]
[1734495509527,0.47954055,104160.0,104150.0,0.14738596]
[1734495509724,0.5502761,104160.0,104150.0,0.14738596]
[1734495510127,0.5502761,104160.0,104150.0,0.08208596]
[1734495510723,0.47954055,104160.0,104150.0,0.08208596]
[1734495511036,0.43071874,104170.0,104150.0,0.20083051]
[1734495511225,0.50145429,104170.0,104160.0,0.2021]
[1734495512425,0.47460906,104190.0,104160.0,0.2021]
[1734495512426,0.00144051,104190.0,104170.0,0.048]
[1734495512633,0.02286519,104190.0,104180.0,0.0645]
[1734495512819,0.02142468,104190.0,104180.0,0.122496]
[1734495513019,0.07073555,104190.0,104180.0,0.0745]
[1734495513320,0.07073555,104190.0,104180.0,0.483296]
[1734495513519,0.36087026,104200.0,104190.0,0.047991]
[1734495513717,7.026e-05,104200.0,104190.0,0.54472655]
[1734495513929,0.11879281,104200.0,104190.0,0.0652]
[1734495514222,0.47959281,104200.0,104190.0,0.0652]
[1734495514820,0.40885726,104200.0,104190.0,0.0652]
[1734495515214,0.40885726,104200.0,104190.0,0.18392655]
[1734495515215,7.026e-05,104200.0,104190.0,0.18392655]
[1734495515622,7.026e-05,104200.0,104190.0,0.179691]
[1734495516160,7.026e-05,104200.0,104190.0,0.25042655]
[1734495517316,0.04805726,104200.0,104190.0,0.25042655]
[1734495517519,7.026e-05,104200.0,104190.0,0.25042655]
[1734495517729,7.026e-05,104200.0,104190.0,0.61122655]
[1734495518125,7.026e-05,104200.0,104190.0,0.91122655]
[1734495518634,0.04805726,104200.0,104190.0,0.91122655]
[1734495518932,0.04805726,104200.0,104190.0,0.540491]
[1734495519131,0.04805726,104200.0,104190.0,0.61122655]
[1734495520433,0.04805726,104200.0,104190.0,0.540491]
[1734495521020,0.04805726,104200.0,104190.0,0.61122655]
[1734495521229,0.04805726,104200.0,104190.0,0.540491]
[1734495521726,7.026e-05,104200.0,104190.0,0.61122655]
[1734495522425,7.026e-05,104200.0,104190.0,0.91122655]
[1734495522625,7.026e-05,104200.0,104190.0,0.9819621]
[1734495522825,0.047977,104220.0,104210.0,0.047982]
[1734495523025,0.00143982,104230.0,104220.0,0.047977]
[1734495523226,0.408769,104240.0,104220.0,0.047977]
[1734495523227,0.408769,104240.0,104220.0,0.544677]
[1734495523929,0.42794726,104240.0,104230.0,9.091e-05]
[1734495524636,0.42779574,104240.0,104230.0,0.07082646]
[1734495524934,0.408769,104240.0,104230.0,0.07082646]
[1734495525824,0.408769,104240.0,104230.0,9.091e-05]
[1734495526225,0.408769,104240.0,104230.0,0.06829091]
[1734495526534,0.047969,104240.0,104230.0,0.47706391]
[1734495526727,0.04803348,104250.0,104230.0,0.54779946]
[1734495526931,6.948e-05,104250.0,104240.0,0.07073555]
[1734495527124,0.01904657,104250.0,104240.0,0.11870355]
[1734495528425,6.948e-05,104250.0,104240.0,0.47950355]
[1734495529037,6.948e-05,104250.0,104240.0,0.77950355]
[1734495529923,0.04939435,104270.0,104240.0,0.8022711]
[1734495530129,0.04939435,104270.0,104250.0,0.47949555]
[1734495530329,0.04939435,104270.0,104260.0,0.13723555]
[1734495531228,0.04939435,104270.0,104260.0,0.0665]
[1734495531625,0.45219931,104270.0,104240.0,0.408768]
[1734495531929,0.408759,104260.0,104240.0,0.54220355]
[1734495532128,0.047959,104260.0,104240.0,0.54220355]
[1734495532328,0.408759,104260.0,104240.0,0.54220355]
[1734495534135,0.02066376,104270.0,104250.0,0.5022711]
[1734495534335,0.1,104300.0,104260.0,0.3608]
[1734495534633,0.047945,104290.0,104280.0,0.43153555]
[1734495534832,0.047945,104290.0,104280.0,0.3608]
[1734495535034,0.114345,104290.0,104280.0,0.3608]
[1734495535234,0.114345,104290.0,104270.0,0.3608]
[1734495535235,0.04795,104280.0,104270.0,0.3608]
[1734495535449,0.04795,104280.0,104270.0,0.36092421]
[1734495535739,0.11446047,104290.0,104270.0,0.43165976]
[1734495536332,0.11446047,104290.0,104270.0,0.47961376]
[1734495537430,0.11446047,104290.0,104270.0,0.40887821]
[1734495538736,0.11446047,104290.0,104280.0,0.3608]
[1734495539340,0.11446047,104290.0,104270.0,0.47961376]
[1734495539638,0.06651447,104290.0,104280.0,0.3608]
[1734495541843,0.06651447,104290.0,104280.0,0.40875]
[1734495542046,0.06651447,104290.0,104280.0,0.3608]
[1734495542234,0.11445947,104290.0,104280.0,0.3608]
[1734495544139,0.18519502,104290.0,104270.0,0.36092421]
[1734495544340,0.11445947,104290.0,104270.0,0.36092421]
[1734495544538,0.04795,104280.0,104270.0,0.36092421]
[1734495544939,0.11868555,104280.0,104270.0,0.36092421]
[1734495546148,0.04795,104280.0,104270.0,0.00012421]
[1734495546352,0.04795,104280.0,104270.0,0.36092421]
[1734495547060,0.15193825,104290.0,104270.0,0.43165976]
[1734495547357,0.15193825,104290.0,104280.0,0.3608]
[1734495547945,0.15193825,104290.0,104280.0,0.40875]
[1734495548355,0.06701447,104290.0,104280.0,0.40875]
[1734495548541,0.00061447,104290.0,104280.0,0.40875]
[1734495548871,0.00061447,104290.0,104280.0,0.47948555]
[1734495549353,0.08553825,104290.0,104280.0,0.47948555]
[1734495549740,0.08553825,104290.0,104280.0,0.54848555]
[1734495551258,0.19876996,104290.0,104280.0,0.54848555]
[1734495552255,0.11384618,104290.0,104280.0,0.54848555]
[1734495552469,0.23220273,104300.0,104290.0,0.047945]
[1734495552756,0.23802151,104320.0,104300.0,0.047941]
[1734495552757,0.21527866,104320.0,104300.0,0.047941]
[1734495553053,0.21527866,104320.0,104310.0,0.9110071]
[1734495553054,0.00143903,104320.0,104310.0,0.9110071]
[1734495553253,0.00143903,104320.0,104310.0,0.84027155]
[1734495553461,0.08643714,104320.0,104310.0,0.84027155]
[1734495553649,0.08643714,104320.0,104310.0,0.9110071]
[1734495554352,0.08137942,104320.0,104310.0,1.2110071]
[1734495554554,0.28053143,104340.0,104330.0,0.047927]
[1734495554763,0.28053143,104340.0,104330.0,0.3692988]
[1734495555151,0.88191454,104340.0,104320.0,0.3608]
[1734495555350,0.047929,104330.0,104320.0,0.43153555]
[1734495555559,0.32846809,104340.0,104320.0,0.47946555]
[1734495555759,0.1869148,104340.0,104330.0,0.3608]
[1734495556449,9.18e-05,104340.0,104330.0,0.408727]
[1734495559968,0.0005918,104340.0,104330.0,0.480927]
[1734495562066,0.07132735,104340.0,104330.0,0.3608]
[1734495562264,0.21288064,104340.0,104320.0,0.408731]
[1734495562565,0.07132735,104340.0,104330.0,0.3608]
[1734495563366,0.21264013,104340.0,104330.0,0.3608]
[1734495564369,0.07132735,104340.0,104330.0,0.3608]
[1734495565068,0.0005918,104340.0,104330.0,0.408727]
[1734495565467,0.07132735,104340.0,104330.0,0.408727]
[1734495565768,0.21264013,104340.0,104320.0,0.408731]
[1734495566272,0.07132735,104340.0,104320.0,0.408731]
[1734495566573,0.21264013,104340.0,104320.0,0.408731]
[1734495566960,0.21264013,104340.0,104330.0,0.3608]
[1734495567166,0.0005918,104340.0,104330.0,0.408727]
[1734495569069,0.6613918,104340.0,104310.0,0.36087966]
[1734495569266,0.47946655,104320.0,104310.0,7.966e-05]
[1734495569769,0.55066655,104320.0,104310.0,7.966e-05]
[1734495570367,0.0712,104320.0,104310.0,0.36087966]
[1734495570564,0.0712,104320.0,104310.0,7.966e-05]
[1734495570766,0.14193555,104320.0,104310.0,7.966e-05]
[1734495570970,0.0712,104320.0,104310.0,0.36087966]
[1734495571400,0.0712,104320.0,104310.0,0.40881566]
[1734495571871,0.0712,104320.0,104310.0,0.36087966]
[1734495572071,0.14193555,104320.0,104310.0,0.36087966]
[1734495572274,0.0712,104320.0,104310.0,0.36087966]
[1734495572771,0.0712,104320.0,104310.0,0.40881566]
[1734495574361,0.18986655,104320.0,104310.0,7.966e-05]
[1734495575171,0.119131,104320.0,104310.0,0.36087966]
[1734495575783,0.0712,104320.0,104310.0,0.40881566]
[1734495576676,0.118927,104330.0,104310.0,0.47955121]
[1734495576863,0.3613918,104340.0,104310.0,0.54685121]
[1734495577068,0.0005918,104340.0,104330.0,0.47946255]
[1734495577270,0.0005918,104340.0,104330.0,0.480227]
[1734495577473,0.07132735,104340.0,104330.0,0.480227]
[1734495577681,0.11924935,104340.0,104330.0,0.408727]
[1734495577971,0.11874935,104340.0,104330.0,0.408727]
[1734495578670,0.07082735,104340.0,104330.0,0.408727]
[1734495578873,9.18e-05,104340.0,104330.0,0.408727]
[1734495579273,9.18e-05,104340.0,104330.0,0.480627]
[1734495580176,0.5861442,104360.0,104340.0,0.047918]
[1734495580177,0.0668,104360.0,104340.0,0.047918]
[1734495580385,0.0668,104360.0,104350.0,0.408718]
[1734495580768,0.0668,104360.0,104350.0,0.769518]
[1734495580965,0.047909,104370.0,104350.0,0.79233555]
[1734495581165,0.61752308,104380.0,104360.0,0.40871]
[1734495581380,0.61752308,104380.0,104360.0,0.40879836]
[1734495581680,0.70379102,104380.0,104360.0,0.40879836]
[1734495581870,0.07073555,104370.0,104360.0,0.40879836]
[1734495582077,0.72317361,104380.0,104360.0,0.40879836]
[1734495582479,0.11864455,104370.0,104360.0,0.36088836]
[1734495582689,0.5501801,104370.0,104360.0,8.836e-05]
[1734495583369,0.47944455,104370.0,104360.0,8.836e-05]
[1734495583882,0.43153555,104370.0,104360.0,8.836e-05]
[1734495584077,0.3608,104370.0,104360.0,8.836e-05]
[1734495584472,0.43153555,104370.0,104360.0,8.836e-05]
[1734495584780,0.47944455,104370.0,104360.0,8.836e-05]
[1734495585283,0.5501801,104370.0,104360.0,8.836e-05]
[1734495585812,0.47944455,104370.0,104360.0,8.836e-05]
[1734495586878,0.408709,104370.0,104360.0,8.836e-05]
[1734495587471,0.3608,104370.0,104360.0,8.836e-05]
[1734495588785,0.60453306,104380.0,104370.0,0.047909]
[1734495589078,0.49961808,104380.0,104370.0,0.047909]
[1734495589771,0.00011808,104380.0,104370.0,0.47944455]
[1734495589974,0.00011808,104380.0,104370.0,0.55244455]
[1734495590386,0.00011808,104380.0,104370.0,0.481709]
[1734495590772,0.00011808,104380.0,104370.0,0.55244455]
[1734495591366,0.00011808,104380.0,104370.0,0.481709]
[1734495592879,0.04802208,104380.0,104370.0,0.4338]
[1734495593075,0.04802208,104380.0,104370.0,0.3608]
[1734495593278,0.12052208,104380.0,104360.0,0.54963591]
[1734495593977,0.0005,104370.0,104360.0,0.54963591]
[1734495595385,0.0005,104370.0,104360.0,0.62113591]
[1734495595779,0.0005,104370.0,104360.0,0.55040036]
[1734495597680,0.0005,104370.0,104360.0,0.48030036]
[1734495597879,0.12052208,104380.0,104360.0,0.48030036]
[1734495598190,0.12052208,104380.0,104370.0,0.3608]
[1734495599086,0.12102208,104380.0,104370.0,0.3608]
[1734495599877,0.12052208,104380.0,104370.0,0.3608]
[1734495600885,0.12102208,104380.0,104370.0,0.3608]
[1734495601289,0.07311808,104380.0,104370.0,0.3608]
[1734495601983,0.07261808,104380.0,104370.0,0.3608]
[1734495602881,0.55255763,104380.0,104360.0,0.36088836]
[1734495603184,0.47944455,104370.0,104360.0,8.836e-05]
[1734495603385,0.62644455,104370.0,104360.0,8.836e-05]
[1734495604876,0.555709,104370.0,104360.0,8.836e-05]
[1734495605194,0.62644455,104370.0,104360.0,8.836e-05]
[1734495607092,0.047913,104360.0,104350.0,0.01]
[1734495607382,0.55284855,104360.0,104350.0,0.01]
[1734495608186,0.55284855,104360.0,104350.0,0.01009774]
[1734495608906,0.80493555,104360.0,104340.0,0.0005]
[1734495609076,0.47945355,104350.0,104340.0,0.0005]
[1734495609877,0.408718,104350.0,104330.0,0.01143741]
[1734495610084,0.47945355,104350.0,104340.0,8.185e-05]
[1734495610883,0.47945355,104350.0,104340.0,0.00058185]
[1734495611275,0.408718,104350.0,104340.0,0.00058185]
[1734495611485,0.47945355,104350.0,104340.0,0.00058185]
[1734495611888,0.47945355,104350.0,104340.0,8.185e-05]
[1734495612182,0.114918,104350.0,104340.0,8.185e-05]
[1734495612889,0.18565355,104350.0,104340.0,0.00058185]
[1734495613076,0.475718,104350.0,104340.0,0.00058185]
[1734495613386,0.54645355,104350.0,104340.0,0.00058185]
[1734495614479,0.18565355,104350.0,104340.0,0.00058185]
[1734495615889,0.18565355,104350.0,104340.0,8.185e-05]
[1734495616192,0.54645355,104350.0,104340.0,8.185e-05]
[1734495617187,0.18565355,104350.0,104340.0,8.185e-05]
[1734495618288,0.047927,104330.0,104320.0,0.3608]
[1734495618483,0.047932,104320.0,104310.0,0.4326]
[1734495619377,0.047932,104320.0,104310.0,0.43270204]
[1734495619788,0.3608,104330.0,104310.0,0.43270204]
[1734495619994,0.408728,104330.0,104310.0,0.43270204]
[1734495620704,0.047932,104320.0,104310.0,0.07190204]
[1734495620992,0.3608,104330.0,104310.0,0.07190204]
[1734495621291,0.047932,104320.0,104310.0,0.07190204]
[1734495621700,0.047932,104320.0,104310.0,0.43270204]
[1734495621993,0.408728,104330.0,104310.0,0.43270204]
[1734495622584,0.42288886,104330.0,104310.0,0.43270204]
[1734495622780,0.49443032,104350.0,104320.0,0.47946755]
[1734495622981,0.408718,104350.0,104330.0,0.409227]
[1734495623301,0.047918,104350.0,104330.0,0.620527]
[1734495624002,0.047918,104350.0,104340.0,0.01]
[1734495624477,0.549714,104360.0,104340.0,0.057922]
[1734495624683,0.549714,104360.0,104350.0,0.01]
[1734495625393,0.63453971,104360.0,104350.0,0.01]
[1734495628793,0.01409016,104360.0,104350.0,0.01]
[1734495629093,0.0005,104370.0,104350.0,0.50863555]
[1734495629279,0.11914455,104370.0,104350.0,0.07721876]
[1734495629483,0.048409,104370.0,104350.0,0.48593576]
[1734495629679,0.409209,104370.0,104350.0,0.48593576]
[1734495629879,0.408709,104370.0,104350.0,0.48593576]
[1734495630281,0.07073555,104370.0,104350.0,0.43801876]
[1734495630493,0.43153555,104360.0,104350.0,0.01011876]
[1734495630795,0.68994855,104360.0,104350.0,0.01011876]
[1734495630998,0.54934855,104360.0,104350.0,0.01011876]
[1734495631191,0.408713,104360.0,104350.0,0.01011876]
[1734495634290,0.047909,104370.0,104350.0,0.48957231]
[1734495634489,0.047909,104370.0,104350.0,0.56167231]
[1734495634889,0.048409,104370.0,104350.0,0.56167231]
[1734495635090,0.0005,104370.0,104360.0,0.47944855]
[1734495635297,0.0005,104370.0,104360.0,0.558913]
[1734495635995,0.57017384,104380.0,104360.0,0.558913]
[1734495636303,0.20937384,104380.0,104360.0,0.558913]
[1734495636897,0.0005,104370.0,104360.0,0.558913]
[1734495637797,0.0005,104370.0,104360.0,0.62964855]
[1734495637997,0.12136118,104380.0,104360.0,0.62964855]
[1734495638202,0.12136118,104380.0,104370.0,0.047909]
[1734495638405,0.04946118,104380.0,104370.0,0.408709]
[1734495639497,0.04946118,104380.0,104370.0,0.3608]
[1734495639699,0.11996118,104380.0,104370.0,0.3608]
[1734495640896,0.11996118,104380.0,104370.0,0.408709]
[1734495641704,0.11996118,104380.0,104370.0,0.047909]
[1734495641909,0.07205618,104380.0,104370.0,0.047909]
[1734495642406,0.047909,104370.0,104350.0,0.49093576]
[1734495642600,0.047909,104370.0,104350.0,0.41883576]
[1734495642601,0.26624455,104370.0,104350.0,0.41883576]
[1734495642825,0.0704,104360.0,104350.0,0.05803576]
[1734495649118,0.118313,104360.0,104350.0,0.05803576]
[1734495649998,0.0704,104360.0,104350.0,0.05803576]
[1734495650203,0.0704,104360.0,104350.0,0.48957131]
[1734495650411,0.56987741,104370.0,104360.0,0.047913]
[1734495650605,0.64467741,104370.0,104360.0,0.047913]
[1734495655214,0.59676841,104370.0,104360.0,0.047913]
[1734495659923,0.59676841,104370.0,104350.0,0.37091876]
[1734495660113,0.64467741,104370.0,104350.0,0.41883576]
[1734495661715,0.71541296,104370.0,104350.0,0.41883576]
[1734495662818,0.11864855,104360.0,104350.0,0.01011876]
[1734495663018,0.47944855,104360.0,104350.0,0.01011876]
[1734495664225,0.047922,104350.0,104330.0,0.36223751]
[1734495664427,0.0724,104340.0,104330.0,0.00143751]
[1734495664618,0.14794936,104340.0,104330.0,0.00143751]
[1734495665219,0.07721381,104340.0,104330.0,0.00151424]
[1734495667028,0.07721381,104340.0,104330.0,0.00201424]
[1734495667428,0.0909726,104340.0,104330.0,0.00201424]
[1734495668144,0.0909726,104340.0,104330.0,0.00151424]
[1734495669053,0.0909726,104340.0,104330.0,0.00201424]
[1734495670051,0.0909726,104340.0,104330.0,0.00151424]
[1734495670952,0.0909726,104340.0,104330.0,0.00201424]
[1734495671951,0.0909726,104340.0,104330.0,0.00151424]
[1734495672958,0.0909726,104340.0,104330.0,0.00201424]
[1734495673954,0.0909726,104340.0,104330.0,0.00151424]
[1734495674549,0.5045,104350.0,104330.0,0.48097679]
[1734495674755,0.1437,104350.0,104340.0,0.11865755]
[1734495674947,0.1437,104350.0,104330.0,0.48694024]
[1734495675748,0.1437,104350.0,104330.0,0.55767579]
[1734495676059,0.1437,104350.0,104330.0,0.55717579]
[1734495677051,0.191618,104350.0,104330.0,0.55767579]
[1734495677255,0.191618,104350.0,104330.0,0.48694024]
[1734495677560,0.191618,104350.0,104330.0,0.55767579]
[1734495678061,0.191618,104350.0,104330.0,0.55717579]
[1734495678359,0.119818,104350.0,104330.0,0.50924979]
[1734495678562,0.047918,104350.0,104340.0,0.408722]
[1734495679160,0.06061048,104350.0,104340.0,0.408722]
[1734495679356,0.06061048,104350.0,104340.0,0.47945755]
[1734495679357,0.01269248,104350.0,104340.0,0.47945755]
[1734495679557,0.484014,104360.0,104340.0,0.19205755]
[1734495679860,0.484014,104360.0,104340.0,0.121322]
[1734495680255,0.484014,104360.0,104340.0,0.482122]
[1734495680473,0.047918,104350.0,104330.0,0.48694024]
[1734495680763,0.26885355,104350.0,104330.0,0.48694024]
[1734495681159,0.198118,104350.0,104330.0,0.48694024]
[1734495681953,0.198118,104350.0,104330.0,0.48644024]
[1734495682854,0.198118,104350.0,104330.0,0.55717579]
[1734495685455,0.58173555,104350.0,104330.0,0.48644024]
[1734495685658,0.47945755,104340.0,104330.0,0.00151424]
[1734495686963,0.5501931,104340.0,104330.0,7.673e-05]
[1734495687160,0.047927,104330.0,104320.0,0.0005]
[1734495687376,0.34256255,104330.0,104320.0,0.0005]
[1734495688056,0.65543555,104330.0,104300.0,0.55434]
[1734495688256,0.047932,104320.0,104300.0,0.55434]
[1734495689366,0.047932,104320.0,104290.0,0.4101831]
[1734495689367,0.42557076,104310.0,104290.0,0.4101831]
[1734495689553,0.49897076,104310.0,104290.0,0.4101831]
[1734495690056,0.49897076,104310.0,104290.0,0.3622381]
[1734495692962,0.0765,104300.0,104290.0,0.3622381]
[1734495693766,0.49897076,104310.0,104290.0,0.48091865]
[1734495693767,0.3608,104310.0,104290.0,0.48091865]
[1734495693959,0.485231,104320.0,104310.0,0.0005]
[1734495694566,0.124431,104320.0,104310.0,0.0005]
[1734495694955,0.124431,104320.0,104300.0,0.63647555]
[1734495695266,0.124431,104320.0,104300.0,0.56574]
[1734495695667,0.13720631,104320.0,104300.0,0.56574]
[1734495695855,0.20794186,104320.0,104300.0,0.56574]
[1734495696260,0.56874186,104320.0,104300.0,0.5178]
[1734495696463,0.20794186,104320.0,104300.0,0.4392]
[1734495697062,0.56874186,104320.0,104300.0,0.4392]
[1734495697269,0.20794186,104320.0,104300.0,0.4392]
[1734495697668,0.56874186,104320.0,104300.0,0.4392]
[1734495697865,0.20794186,104320.0,104300.0,0.4392]
[1734495698275,0.56874186,104320.0,104300.0,0.4392]
[1734495698573,0.11867155,104310.0,104300.0,0.3608]
[1734495699571,0.11867155,104310.0,104290.0,0.5632831]
[1734495699572,0.047941,104300.0,104290.0,0.0019381]
[1734495699783,0.70657655,104300.0,104290.0,0.0019381]
[1734495700866,0.34577655,104300.0,104290.0,0.0019381]
[1734495701083,0.27027655,104300.0,104290.0,0.0019381]
[1734495701373,0.63107655,104300.0,104290.0,0.0019381]
[1734495701566,0.047947,104290.0,104270.0,0.482653]
[1734495701763,0.11868255,104290.0,104270.0,0.482653]
[1734495702168,0.047947,104290.0,104270.0,0.482653]
[1734495704079,0.11868255,104290.0,104270.0,0.482653]
[1734495704376,0.06477102,104290.0,104270.0,0.482653]
[1734495704577,0.11271702,104290.0,104270.0,0.482653]
[1734495705571,0.11271702,104290.0,104270.0,0.0739]
[1734495705772,0.11868555,104280.0,104260.0,0.56900186]
[1734495705981,0.47948555,104280.0,104260.0,0.5089]
[1734495706174,0.11868555,104280.0,104260.0,0.5089]
[1734495706370,0.04795,104280.0,104260.0,0.5089]
[1734495706677,0.124245,104290.0,104270.0,0.3608]
[1734495706874,0.124245,104290.0,104270.0,0.4347]
[1734495709482,0.11868555,104280.0,104260.0,0.556857]
[1734495709672,0.12185,104280.0,104260.0,0.556857]